[Event "Titled Tuesday Blitz April 19 Late 2022"]
[White "Martic, Ivan"]
[Black "Janturin, Artur"]
[WhiteFideId "929301"]
[BlackFideId "4130022"]
[WhiteElo "2317"]
[BlackElo "2400"]
[Result "1-0"]
[Round "09"]
[TimeControl "180+1"]
[Date "2022.04.19"]
[WhiteClock "0:00:52"]
[BlackClock "0:00:06"]

1. d4 {[%clk 0:03:00]}  e6 {[%clk 0:02:59]} 2. e4 {[%clk 0:03:00]}  d5 {[%clk 0:02:59]} 3. e5 {[%clk 0:03:00]}  c5 {[%clk 0:02:58]} 4. c3 {[%clk 0:03:00]}  Qb6 {[%clk 0:02:57]} 5. Nf3 {[%clk 0:03:01]}  Bd7 {[%clk 0:02:57]} 6. Be2 {[%clk 0:03:00]}  Bb5 {[%clk 0:02:56]} 7. c4 {[%clk 0:03:00]}  Bxc4 {[%clk 0:02:51]} 8. Bxc4 {[%clk 0:03:00]}  dxc4 {[%clk 0:02:51]} 9. d5 {[%clk 0:03:01]}  exd5 {[%clk 0:02:41]} 10. Qxd5 {[%clk 0:03:02]}  Ne7 {[%clk 0:02:07]} 11. Qe4 {[%clk 0:03:01]}  Qc6 {[%clk 0:01:44]} 12. Qxc4 {[%clk 0:02:59]}  Qa6 {[%clk 0:01:44]} 13. Na3 {[%clk 0:02:59]}  Qxc4 {[%clk 0:01:32]} 14. Nxc4 {[%clk 0:03:00]}  Nf5 {[%clk 0:01:32]} 15. O-O {[%clk 0:02:58]}  Nc6 {[%clk 0:01:32]} 16. Rd1 {[%clk 0:02:46]}  Ncd4 {[%clk 0:01:23]} 17. Nxd4 {[%clk 0:02:41]}  Nxd4 {[%clk 0:01:24]} 18. Be3 {[%clk 0:02:33]}  O-O-O {[%clk 0:01:08]} 19. b4 {[%clk 0:02:24]}  Nc2 {[%clk 0:00:56]} 20. Rxd8+ {[%clk 0:02:22]}  Kxd8 {[%clk 0:00:57]} 21. Rd1+ {[%clk 0:02:22]}  Kc7 {[%clk 0:00:56]} 22. Bxc5 {[%clk 0:02:16]}  Nxb4 {[%clk 0:00:51]} 23. Nd6 {[%clk 0:02:09]}  Nc6 {[%clk 0:00:41]} 24. Nxf7 {[%clk 0:02:06]}  Rg8 {[%clk 0:00:36]} 25. Be3 {[%clk 0:01:50]}  Be7 {[%clk 0:00:22]} 26. e6 {[%clk 0:01:48]}  Bf6 {[%clk 0:00:14]} 27. Rd7+ {[%clk 0:01:45]}  Kb8 {[%clk 0:00:11]} 28. Bf4+ {[%clk 0:01:36]}  Ka8 {[%clk 0:00:09]} 29. Nd6 {[%clk 0:01:34]}  Rd8 {[%clk 0:00:07]} 30. g4 {[%clk 0:01:25]}  Rxd7 {[%clk 0:00:05]} 31. exd7 {[%clk 0:01:25]}  b6 {[%clk 0:00:04]} 32. Kg2 {[%clk 0:01:07]}  Nb8 {[%clk 0:00:04]} 33. g5 {[%clk 0:01:01]}  Be7 {[%clk 0:00:03]} 34. Nf5 {[%clk 0:01:00]}  Bd8 {[%clk 0:00:04]} 35. Bxb8 {[%clk 0:00:58]}  Kxb8 {[%clk 0:00:05]} 36. Nxg7 {[%clk 0:00:57]}  Kc7 {[%clk 0:00:04]} 37. Ne6+ {[%clk 0:00:55]}  Kxd7 {[%clk 0:00:05]} 38. Nxd8 {[%clk 0:00:55]}  Kxd8 {[%clk 0:00:06]} 39. f4 {[%clk 0:00:53]}  Kd7 {[%clk 0:00:05]} 40. f5 {[%clk 0:00:51]}  Kd6 {[%clk 0:00:05]} 41. Kf3 {[%clk 0:00:51]}  b5 {[%clk 0:00:05]} 42. Ke4 {[%clk 0:00:51]}  a5 {[%clk 0:00:05]} 43. Kd4 {[%clk 0:00:52]}  b4 {[%clk 0:00:05]} 44. Kc4 {[%clk 0:00:52]}  Ke5 {[%clk 0:00:06]} 45. f6 {[%clk 0:00:52]}  Ke6 {[%clk 0:00:06]} 46. h4 {[%clk 0:00:52]} 1-0


[Site "https://www.chess.com"]

[Event "Titled Tuesday Blitz April 19 Late 2022"]
[White "Melikhov, Evgeny V."]
[Black "Derraugh, Geordie"]
[WhiteFideId "4122046"]
[BlackFideId "2603950"]
[WhiteElo "1931"]
[BlackElo "2116"]
[Result "1-0"]
[Round "09"]
[TimeControl "180+1"]
[Date "2022.04.19"]
[WhiteClock "0:00:05"]
[BlackClock "0:00:37"]

1. d4 {[%clk 0:03:00]}  Nf6 {[%clk 0:02:58]} 2. c4 {[%clk 0:03:00]}  g6 {[%clk 0:02:58]} 3. Nc3 {[%clk 0:03:01]}  d5 {[%clk 0:02:59]} 4. cxd5 {[%clk 0:03:00]}  Nxd5 {[%clk 0:02:59]} 5. e4 {[%clk 0:02:58]}  Nxc3 {[%clk 0:02:59]} 6. bxc3 {[%clk 0:02:59]}  Bg7 {[%clk 0:03:00]} 7. Bc4 {[%clk 0:02:59]}  c5 {[%clk 0:03:00]} 8. Ne2 {[%clk 0:02:59]}  O-O {[%clk 0:03:00]} 9. Be3 {[%clk 0:02:58]}  Nc6 {[%clk 0:03:01]} 10. h4 {[%clk 0:02:57]}  cxd4 {[%clk 0:03:01]} 11. cxd4 {[%clk 0:02:57]}  Qa5+ {[%clk 0:03:00]} 12. Kf1 {[%clk 0:02:57]}  h5 {[%clk 0:03:00]} 13. Rc1 {[%clk 0:02:42]}  e6 {[%clk 0:02:47]} 14. Bg5 {[%clk 0:02:41]}  Bd7 {[%clk 0:02:46]} 15. d5 {[%clk 0:02:30]}  exd5 {[%clk 0:02:45]} 16. Qxd5 {[%clk 0:02:17]}  Qxd5 {[%clk 0:02:40]} 17. Bxd5 {[%clk 0:02:17]}  Rac8 {[%clk 0:02:32]} 18. f3 {[%clk 0:02:10]}  b6 {[%clk 0:02:27]} 19. Kf2 {[%clk 0:02:09]}  Nb4 {[%clk 0:02:25]} 20. Rxc8 {[%clk 0:01:40]}  Rxc8 {[%clk 0:02:24]} 21. Bb3 {[%clk 0:01:33]}  a5 {[%clk 0:02:17]} 22. Rd1 {[%clk 0:01:32]}  Be8 {[%clk 0:02:12]} 23. Rd8 {[%clk 0:01:29]}  Rxd8 {[%clk 0:02:08]} 24. Bxd8 {[%clk 0:01:28]}  a4 {[%clk 0:02:08]} 25. Bd1 {[%clk 0:00:53]}  b5 {[%clk 0:02:06]} 26. a3 {[%clk 0:00:51]}  Nd3+ {[%clk 0:01:56]} 27. Ke3 {[%clk 0:00:50]}  Nb2 {[%clk 0:01:51]} 28. Bc2 {[%clk 0:00:43]}  Bf8 {[%clk 0:01:47]} 29. Nc3 {[%clk 0:00:17]}  Bxa3 {[%clk 0:01:45]} 30. Bd3 {[%clk 0:00:16]}  Bc5+ {[%clk 0:01:32]} 31. Kd2 {[%clk 0:00:14]}  b4 {[%clk 0:01:33]} 32. Nd5 {[%clk 0:00:14]}  Nxd3 {[%clk 0:01:26]} 33. Kxd3 {[%clk 0:00:14]}  Bb5+ {[%clk 0:01:27]} 34. Kc2 {[%clk 0:00:13]}  Bf1 {[%clk 0:01:27]} 35. g3 {[%clk 0:00:10]}  Bg2 {[%clk 0:01:26]} 36. Ba5 {[%clk 0:00:07]}  b3+ {[%clk 0:01:24]} 37. Kb2 {[%clk 0:00:05]}  Bxf3 {[%clk 0:01:24]} 38. Bc3 {[%clk 0:00:04]}  Bd1 {[%clk 0:01:19]} 39. Nf6+ {[%clk 0:00:03]}  Kf8 {[%clk 0:00:44]} 40. Nd7+ {[%clk 0:00:03]}  Ke7 {[%clk 0:00:45]} 41. Nxc5 {[%clk 0:00:04]}  Kd6 {[%clk 0:00:46]} 42. Nxa4 {[%clk 0:00:04]}  f5 {[%clk 0:00:43]} 43. exf5 {[%clk 0:00:04]}  gxf5 {[%clk 0:00:43]} 44. Bb4+ {[%clk 0:00:03]}  Kd5 {[%clk 0:00:43]} 45. Kc3 {[%clk 0:00:03]}  Ke4 {[%clk 0:00:43]} 46. Nb2 {[%clk 0:00:04]}  Bc2 {[%clk 0:00:43]} 47. Bd6 {[%clk 0:00:04]}  Kf3 {[%clk 0:00:42]} 48. Bf4 {[%clk 0:00:05]}  Kg4 {[%clk 0:00:42]} 49. Nd3 {[%clk 0:00:04]}  Kf3 {[%clk 0:00:41]} 50. Nc5 {[%clk 0:00:04]}  Bd1 {[%clk 0:00:40]} 51. Nxb3 {[%clk 0:00:04]}  Be2 {[%clk 0:00:36]} 52. Nd4+ {[%clk 0:00:04]}  Kf2 {[%clk 0:00:36]} 53. Nxe2 {[%clk 0:00:04]}  Kxe2 {[%clk 0:00:37]} 54. Kd4 {[%clk 0:00:05]} 1-0


[Site "https://www.chess.com"]

[Event "Titled Tuesday Blitz April 19 Late 2022"]
[White "Nozdrachev, Leonid"]
[Black "Stanisz, Patryk"]
[WhiteFideId "24113433"]
[BlackFideId "1123106"]
[WhiteElo "2242"]
[BlackElo "1833"]
[Result "1-0"]
[Round "09"]
[TimeControl "180+1"]
[Date "2022.04.19"]
[WhiteClock "0:00:44"]
[BlackClock "0:00:01"]

1. e4 {[%clk 0:02:56]}  d5 {[%clk 0:02:59]} 2. exd5 {[%clk 0:02:53]}  Nf6 {[%clk 0:02:59]} 3. c4 {[%clk 0:02:45]}  c6 {[%clk 0:02:59]} 4. d4 {[%clk 0:02:44]}  cxd5 {[%clk 0:02:58]} 5. Nc3 {[%clk 0:02:44]}  g6 {[%clk 0:02:50]} 6. Qb3 {[%clk 0:02:41]}  Bg7 {[%clk 0:02:50]} 7. cxd5 {[%clk 0:02:38]}  O-O {[%clk 0:02:50]} 8. Nf3 {[%clk 0:02:34]}  Nbd7 {[%clk 0:02:49]} 9. Be2 {[%clk 0:02:28]}  Nb6 {[%clk 0:02:48]} 10. O-O {[%clk 0:02:27]}  Nbxd5 {[%clk 0:02:46]} 11. Be3 {[%clk 0:02:27]}  b6 {[%clk 0:02:35]} 12. Ne5 {[%clk 0:02:22]}  Bb7 {[%clk 0:02:33]} 13. Bf3 {[%clk 0:02:22]}  e6 {[%clk 0:02:32]} 14. Rac1 {[%clk 0:02:21]}  Qe7 {[%clk 0:02:25]} 15. a3 {[%clk 0:02:10]}  Nxc3 {[%clk 0:02:17]} 16. bxc3 {[%clk 0:02:04]}  Bxf3 {[%clk 0:02:13]} 17. Nxf3 {[%clk 0:02:05]}  Nd5 {[%clk 0:02:01]} 18. Bg5 {[%clk 0:02:04]}  Qb7 {[%clk 0:01:53]} 19. c4 {[%clk 0:02:03]}  Nf6 {[%clk 0:01:50]} 20. c5 {[%clk 0:02:01]}  Rac8 {[%clk 0:01:47]} 21. Ne5 {[%clk 0:02:00]}  Nd5 {[%clk 0:01:41]} 22. c6 {[%clk 0:01:58]}  Qa6 {[%clk 0:01:40]} 23. Nd7 {[%clk 0:01:52]}  Rfe8 {[%clk 0:01:34]} 24. Rfd1 {[%clk 0:01:51]}  Qe2 {[%clk 0:01:12]} 25. h3 {[%clk 0:01:43]}  h6 {[%clk 0:01:00]} 26. Bd2 {[%clk 0:01:39]}  Bxd4 {[%clk 0:00:54]} 27. Bxh6 {[%clk 0:01:36]}  Qxf2+ {[%clk 0:00:42]} 28. Kh1 {[%clk 0:01:35]}  Be3 {[%clk 0:00:32]} 29. Rf1 {[%clk 0:01:30]}  Qg3 {[%clk 0:00:04]} 30. Rf3 {[%clk 0:01:28]}  Qxf3 {[%clk 0:00:02]} 31. gxf3 {[%clk 0:01:24]}  Bxc1 {[%clk 0:00:03]} 32. Bxc1 {[%clk 0:01:23]}  Rxc6 {[%clk 0:00:04]} 33. Bb2 {[%clk 0:01:22]}  Rec8 {[%clk 0:00:02]} 34. Nf6+ {[%clk 0:01:14]}  Nxf6 {[%clk 0:00:02]} 35. Bxf6 {[%clk 0:01:15]}  Rc1+ {[%clk 0:00:01]} 36. Kg2 {[%clk 0:01:14]}  R8c2+ {[%clk 0:00:02]} 37. Kg3 {[%clk 0:01:14]}  Rg1+ {[%clk 0:00:02]} 38. Kf4 {[%clk 0:01:14]}  Rc5 {[%clk 0:00:03]} 39. Bd4 {[%clk 0:01:06]}  Rf5+ {[%clk 0:00:03]} 40. Ke3 {[%clk 0:01:05]}  Re1+ {[%clk 0:00:03]} 41. Kf2 {[%clk 0:01:04]}  Rc1 {[%clk 0:00:02]} 42. Bb2 {[%clk 0:00:59]}  Rcc5 {[%clk 0:00:01]} 43. Qd3 {[%clk 0:00:56]}  f6 {[%clk 0:00:02]} 44. Qd8+ {[%clk 0:00:55]}  Kh7 {[%clk 0:00:03]} 45. Qe7+ {[%clk 0:00:54]}  Kh6 {[%clk 0:00:03]} 46. Bd4 {[%clk 0:00:50]}  Rc2+ {[%clk 0:00:03]} 47. Ke3 {[%clk 0:00:49]}  Rc4 {[%clk 0:00:03]} 48. Bxf6 {[%clk 0:00:47]}  Rcc5 {[%clk 0:00:02]} 49. Qg7+ {[%clk 0:00:45]}  Kh5 {[%clk 0:00:01]} 50. Qh7# {[%clk 0:00:44]} 1-0


[Site "https://www.chess.com"]

[Event "Titled Tuesday Blitz April 19 Late 2022"]
[White "Omariev, Maksim"]
[Black "Zherebtsova, Alexandra"]
[WhiteFideId "4193423"]
[BlackFideId "24129518"]
[WhiteElo "2493"]
[BlackElo "2025"]
[Result "0-1"]
[Round "09"]
[TimeControl "180+1"]
[Date "2022.04.19"]
[WhiteClock "0:00:01"]
[BlackClock "0:00:04"]

1. g4 {[%clk 0:03:00]}  d5 {[%clk 0:02:57]} 2. Bg2 {[%clk 0:03:00]}  h5 {[%clk 0:02:58]} 3. g5 {[%clk 0:02:58]}  e5 {[%clk 0:02:53]} 4. d4 {[%clk 0:02:58]}  e4 {[%clk 0:02:51]} 5. c4 {[%clk 0:02:57]}  c6 {[%clk 0:02:51]} 6. h4 {[%clk 0:02:51]}  Nd7 {[%clk 0:02:24]} 7. Nc3 {[%clk 0:02:50]}  Nb6 {[%clk 0:02:23]} 8. cxd5 {[%clk 0:02:33]}  cxd5 {[%clk 0:02:17]} 9. Bf4 {[%clk 0:02:33]}  Bd6 {[%clk 0:02:06]} 10. Bxd6 {[%clk 0:02:20]}  Qxd6 {[%clk 0:02:07]} 11. e3 {[%clk 0:02:12]}  Bg4 {[%clk 0:02:00]} 12. Qb3 {[%clk 0:02:03]}  Ne7 {[%clk 0:01:56]} 13. Nge2 {[%clk 0:01:57]}  O-O-O {[%clk 0:01:38]} 14. Nb5 {[%clk 0:01:46]}  Qb8 {[%clk 0:01:13]} 15. Rc1+ {[%clk 0:00:38]}  Nc6 {[%clk 0:01:06]} 16. a4 {[%clk 0:00:38]}  a6 {[%clk 0:00:45]} 17. a5 {[%clk 0:00:38]}  Nc4 {[%clk 0:00:36]} 18. Na3 {[%clk 0:00:38]}  Nxa3 {[%clk 0:00:25]} 19. Qxa3 {[%clk 0:00:33]}  Qd6 {[%clk 0:00:19]} 20. Rc5 {[%clk 0:00:28]}  Bxe2 {[%clk 0:00:15]} 21. Kxe2 {[%clk 0:00:28]}  Kb8 {[%clk 0:00:15]} 22. b4 {[%clk 0:00:25]}  Na7 {[%clk 0:00:14]} 23. Bh3 {[%clk 0:00:20]}  f6 {[%clk 0:00:13]} 24. Qb3 {[%clk 0:00:17]}  fxg5 {[%clk 0:00:13]} 25. hxg5 {[%clk 0:00:17]}  Rhf8 {[%clk 0:00:10]} 26. Qc3 {[%clk 0:00:08]}  Rf3 {[%clk 0:00:08]} 27. Bg2 {[%clk 0:00:07]}  Rf7 {[%clk 0:00:07]} 28. Rf1 {[%clk 0:00:03]}  Rdf8 {[%clk 0:00:06]} 29. Bh3 {[%clk 0:00:03]}  h4 {[%clk 0:00:04]} 30. g6 {[%clk 0:00:03]}  Rf6 {[%clk 0:00:03]} 31. Qb3 {[%clk 0:00:03]}  Qh2 {[%clk 0:00:03]} 32. Qxd5 {[%clk 0:00:02]}  Rxf2+ {[%clk 0:00:03]} 33. Kd1 {[%clk 0:00:01]}  Rxf1+ {[%clk 0:00:03]} 34. Bxf1 {[%clk 0:00:01]}  Rxf1# {[%clk 0:00:04]} 0-1


[Site "https://www.chess.com"]

[Event "Titled Tuesday Blitz April 19 Late 2022"]
[White "Ozdemir, Serhan Berat"]
[Black "Soysal, Serkan"]
[WhiteFideId "6374611"]
[BlackFideId "6349250"]
[WhiteElo "1920"]
[BlackElo "2440"]
[Result "0-1"]
[Round "09"]
[TimeControl "180+1"]
[Date "2022.04.19"]
[WhiteClock "0:00:03"]
[BlackClock "0:00:03"]

1. e4 {[%clk 0:03:00]}  e5 {[%clk 0:02:30]} 2. Nf3 {[%clk 0:03:00]}  Nc6 {[%clk 0:02:26]} 3. d4 {[%clk 0:03:00]}  exd4 {[%clk 0:02:24]} 4. Bc4 {[%clk 0:03:01]}  Bc5 {[%clk 0:02:09]} 5. c3 {[%clk 0:03:00]}  Nf6 {[%clk 0:02:05]} 6. e5 {[%clk 0:03:01]}  d5 {[%clk 0:02:05]} 7. Bb5 {[%clk 0:03:01]}  Ne4 {[%clk 0:02:05]} 8. cxd4 {[%clk 0:03:01]}  Bb6 {[%clk 0:02:00]} 9. h3 {[%clk 0:03:01]}  O-O {[%clk 0:01:59]} 10. Be3 {[%clk 0:02:57]}  Ne7 {[%clk 0:01:58]} 11. Nc3 {[%clk 0:02:54]}  Nf5 {[%clk 0:01:48]} 12. Bd3 {[%clk 0:02:42]}  Nxe3 {[%clk 0:01:41]} 13. fxe3 {[%clk 0:02:42]}  Ng3 {[%clk 0:01:16]} 14. Rg1 {[%clk 0:02:07]}  c5 {[%clk 0:00:40]} 15. Qc2 {[%clk 0:02:03]}  g6 {[%clk 0:00:39]} 16. O-O-O {[%clk 0:01:59]}  c4 {[%clk 0:00:37]} 17. Bf1 {[%clk 0:01:55]}  Ba5 {[%clk 0:00:23]} 18. Ne2 {[%clk 0:00:51]}  Bf5 {[%clk 0:00:20]} 19. Qa4 {[%clk 0:00:51]}  b5 {[%clk 0:00:17]} 20. Qxb5 {[%clk 0:00:43]}  Rb8 {[%clk 0:00:17]} 21. Qa4 {[%clk 0:00:43]}  Qb6 {[%clk 0:00:16]} 22. Qa3 {[%clk 0:00:16]}  Bb4 {[%clk 0:00:13]} 23. Qa4 {[%clk 0:00:12]}  Be7 {[%clk 0:00:12]} 24. Rd2 {[%clk 0:00:09]}  Ne4 {[%clk 0:00:12]} 25. Rc2 {[%clk 0:00:06]}  c3 {[%clk 0:00:10]} 26. g4 {[%clk 0:00:03]}  cxb2+ {[%clk 0:00:10]} 27. Kb1 {[%clk 0:00:04]}  Nc3+ {[%clk 0:00:08]} 28. Nxc3 {[%clk 0:00:04]}  Bxc2+ {[%clk 0:00:09]} 29. Qxc2 {[%clk 0:00:05]}  Rfc8 {[%clk 0:00:08]} 30. Qd2 {[%clk 0:00:02]}  Bb4 {[%clk 0:00:07]} 31. Bd3 {[%clk 0:00:02]}  Bxc3 {[%clk 0:00:07]} 32. Qe2 {[%clk 0:00:02]}  Ba5 {[%clk 0:00:05]} 33. Bc2 {[%clk 0:00:01]}  Rc3 {[%clk 0:00:03]} 34. e6 {[%clk 0:00:02]}  Qxe6 {[%clk 0:00:02]} 35. Ne5 {[%clk 0:00:02]}  f6 {[%clk 0:00:02]} 36. Nf3 {[%clk 0:00:01]}  Qxe3 {[%clk 0:00:02]} 37. Qd1 {[%clk 0:00:01]}  Qxf3 {[%clk 0:00:02]} 38. Rf1 {[%clk 0:00:01]}  Qxd1+ {[%clk 0:00:02]} 39. Rxd1 {[%clk 0:00:02]}  Rxc2 {[%clk 0:00:03]} 40. Re1 {[%clk 0:00:03]}  Rc1+ {[%clk 0:00:03]} 0-1


[Site "https://www.chess.com"]

[Event "Titled Tuesday Blitz April 19 Late 2022"]
[White "Petesch, Gabriel"]
[Black "Petrova, Irina"]
[WhiteFideId "2032465"]
[BlackFideId "14124122"]
[WhiteElo "2374"]
[BlackElo "1993"]
[Result "1-0"]
[Round "09"]
[TimeControl "180+1"]
[Date "2022.04.19"]
[WhiteClock "0:00:23"]
[BlackClock "0:00:08"]

1. Nf3 {[%clk 0:03:00]}  d5 {[%clk 0:02:59]} 2. b3 {[%clk 0:02:56]}  Nf6 {[%clk 0:02:55]} 3. Bb2 {[%clk 0:02:41]}  c6 {[%clk 0:02:55]} 4. g3 {[%clk 0:02:40]}  Bg4 {[%clk 0:02:53]} 5. Bg2 {[%clk 0:02:39]}  Nbd7 {[%clk 0:02:53]} 6. O-O {[%clk 0:02:38]}  e6 {[%clk 0:02:53]} 7. d3 {[%clk 0:02:32]}  Be7 {[%clk 0:02:52]} 8. Nbd2 {[%clk 0:02:31]}  O-O {[%clk 0:02:51]} 9. c4 {[%clk 0:02:29]}  a5 {[%clk 0:02:49]} 10. a3 {[%clk 0:02:28]}  b5 {[%clk 0:02:41]} 11. Nd4 {[%clk 0:02:21]}  Qb6 {[%clk 0:02:31]} 12. Rc1 {[%clk 0:02:10]}  Rac8 {[%clk 0:02:19]} 13. h3 {[%clk 0:02:05]}  Bh5 {[%clk 0:02:18]} 14. g4 {[%clk 0:01:29]}  Bg6 {[%clk 0:02:17]} 15. f4 {[%clk 0:01:28]}  bxc4 {[%clk 0:02:08]} 16. dxc4 {[%clk 0:01:20]}  c5 {[%clk 0:02:00]} 17. Nb5 {[%clk 0:01:17]}  d4 {[%clk 0:01:54]} 18. Qe1 {[%clk 0:00:58]}  h6 {[%clk 0:01:45]} 19. e4 {[%clk 0:00:58]}  dxe3 {[%clk 0:01:22]} 20. Qxe3 {[%clk 0:00:54]}  Rfd8 {[%clk 0:01:23]} 21. f5 {[%clk 0:00:52]}  Bh7 {[%clk 0:01:19]} 22. Rce1 {[%clk 0:00:41]}  Nf8 {[%clk 0:01:18]} 23. Nf3 {[%clk 0:00:37]}  N6d7 {[%clk 0:00:42]} 24. g5 {[%clk 0:00:29]}  hxg5 {[%clk 0:00:41]} 25. Nxg5 {[%clk 0:00:28]}  Bxg5 {[%clk 0:00:33]} 26. Qxg5 {[%clk 0:00:29]}  f6 {[%clk 0:00:32]} 27. Qg3 {[%clk 0:00:29]}  Bxf5 {[%clk 0:00:29]} 28. Rxf5 {[%clk 0:00:26]}  exf5 {[%clk 0:00:28]} 29. Bd5+ {[%clk 0:00:27]}  Kh8 {[%clk 0:00:26]} 30. Re7 {[%clk 0:00:26]}  g5 {[%clk 0:00:17]} 31. Qxg5 {[%clk 0:00:24]}  Ng6 {[%clk 0:00:08]} 32. Qh6# {[%clk 0:00:23]} 1-0


[Site "https://www.chess.com"]

[Event "Titled Tuesday Blitz April 19 Late 2022"]
[White "Prohorov, Olexandr"]
[Black "Gatterer, Florian"]
[WhiteFideId "14105578"]
[BlackFideId "811688"]
[WhiteElo "1993"]
[BlackElo "2218"]
[Result "1-0"]
[Round "09"]
[TimeControl "180+1"]
[Date "2022.04.19"]
[WhiteClock "0:00:14"]
[BlackClock "0:00:18"]

1. e4 {[%clk 0:03:00]}  c6 {[%clk 0:02:59]} 2. d4 {[%clk 0:02:59]}  d5 {[%clk 0:03:00]} 3. e5 {[%clk 0:02:59]}  Bf5 {[%clk 0:02:59]} 4. Nf3 {[%clk 0:02:59]}  e6 {[%clk 0:02:59]} 5. Be2 {[%clk 0:02:59]}  Nd7 {[%clk 0:02:56]} 6. O-O {[%clk 0:02:57]}  Ne7 {[%clk 0:02:55]} 7. Be3 {[%clk 0:02:48]}  h6 {[%clk 0:02:49]} 8. a4 {[%clk 0:02:36]}  g5 {[%clk 0:02:30]} 9. Ne1 {[%clk 0:02:34]}  c5 {[%clk 0:02:28]} 10. g4 {[%clk 0:01:48]}  Bg6 {[%clk 0:02:21]} 11. c3 {[%clk 0:01:44]}  Bg7 {[%clk 0:02:18]} 12. Bd3 {[%clk 0:01:42]}  Qc7 {[%clk 0:02:12]} 13. b4 {[%clk 0:01:37]}  c4 {[%clk 0:02:12]} 14. Bxg6 {[%clk 0:01:33]}  Nxg6 {[%clk 0:02:11]} 15. Ng2 {[%clk 0:01:33]}  f6 {[%clk 0:01:58]} 16. Qc2 {[%clk 0:01:28]}  Ne7 {[%clk 0:01:54]} 17. f4 {[%clk 0:01:26]}  f5 {[%clk 0:01:54]} 18. fxg5 {[%clk 0:01:21]}  fxg4 {[%clk 0:01:31]} 19. Nf4 {[%clk 0:01:14]}  Nf8 {[%clk 0:01:14]} 20. Nh5 {[%clk 0:01:11]}  Bxe5 {[%clk 0:01:06]} 21. dxe5 {[%clk 0:01:08]}  Qxe5 {[%clk 0:01:05]} 22. Bd4 {[%clk 0:01:08]}  Qxg5 {[%clk 0:01:05]} 23. Bxh8 {[%clk 0:00:52]}  Qxh5 {[%clk 0:01:05]} 24. Qe2 {[%clk 0:00:50]}  O-O-O {[%clk 0:00:50]} 25. Bf6 {[%clk 0:00:44]}  Nfg6 {[%clk 0:00:47]} 26. Bxe7 {[%clk 0:00:37]}  Rd7 {[%clk 0:00:47]} 27. Bc5 {[%clk 0:00:31]}  e5 {[%clk 0:00:41]} 28. Nd2 {[%clk 0:00:28]}  b6 {[%clk 0:00:41]} 29. Be3 {[%clk 0:00:19]}  Nh4 {[%clk 0:00:21]} 30. Rf8+ {[%clk 0:00:17]}  Kb7 {[%clk 0:00:20]} 31. Raf1 {[%clk 0:00:16]}  d4 {[%clk 0:00:19]} 32. cxd4 {[%clk 0:00:16]}  exd4 {[%clk 0:00:19]} 33. Qxc4 {[%clk 0:00:14]}  Nf3+ {[%clk 0:00:18]} 34. Nxf3 {[%clk 0:00:14]}  gxf3 {[%clk 0:00:18]} 35. Qc8# {[%clk 0:00:14]} 1-0


[Site "https://www.chess.com"]